[Event "*** Titled Tuesday Blitz"]
[Site "Chess.com"]
[Date "2020.04.14"]
[Round "7"]
[White "josmito10"]
[Black "Jenia84"]
[Result "1-0"]
[WhiteElo "2754"]
[BlackElo "2362"]
[TimeControl "180+1"]
[EndTime "11:16:09 PDT"]
[Termination "josmito10 won on time"]

1. d4 {[%clk 0:03:00.7]} 1... Nf6 {[%clk 0:02:59.3]} 2. c4 {[%clk 0:03:01.1]}
2... e6 {[%clk 0:02:58]} 3. g3 {[%clk 0:03:00.7]} 3... d5 {[%clk 0:02:55.1]} 4.
Nf3 {[%clk 0:03:01]} 4... Bb4+ {[%clk 0:02:53.2]} 5. Bd2 {[%clk 0:03:01.1]} 5...
Bd6 {[%clk 0:02:52.2]} 6. Bg2 {[%clk 0:03:01.1]} 6... O-O {[%clk 0:02:50]} 7.
O-O {[%clk 0:03:00.7]} 7... c6 {[%clk 0:02:50.1]} 8. Qc2 {[%clk 0:03:00.8]} 8...
Nbd7 {[%clk 0:02:46.8]} 9. Bg5 {[%clk 0:02:58.1]} 9... h6 {[%clk 0:02:43.9]} 10.
Bxf6 {[%clk 0:02:58.2]} 10... Qxf6 {[%clk 0:02:41.5]} 11. Nbd2 {[%clk
0:02:59.1]} 11... Bc7 {[%clk 0:02:38.9]} 12. e4 {[%clk 0:02:59]} 12... dxc4
{[%clk 0:02:32.7]} 13. Nxc4 {[%clk 0:02:57.7]} 13... e5 {[%clk 0:02:31.5]} 14.
d5 {[%clk 0:02:50.5]} 14... Nb6 {[%clk 0:02:26.9]} 15. Nxb6 {[%clk 0:02:27.5]}
15... axb6 {[%clk 0:02:25.8]} 16. Rfc1 {[%clk 0:02:22.5]} 16... Bd7 {[%clk
0:02:22.8]} 17. Nd2 {[%clk 0:02:18.6]} 17... Rac8 {[%clk 0:02:14]} 18. a4 {[%clk
0:02:10.2]} 18... Bd6 {[%clk 0:02:06]} 19. Nc4 {[%clk 0:02:00.4]} 19... Bc5
{[%clk 0:02:05.2]} 20. Qd2 {[%clk 0:01:56]} 20... Bd4 {[%clk 0:01:59]} 21. Ne3
{[%clk 0:01:39.2]} 21... Rfd8 {[%clk 0:01:48.9]} 22. Rc4 {[%clk 0:01:28.2]}
22... Qg5 {[%clk 0:01:42.5]} 23. Rac1 {[%clk 0:01:22.8]} 23... cxd5 {[%clk
0:01:29.2]} 24. Rxc8 {[%clk 0:01:18.4]} 24... Rxc8 {[%clk 0:01:29.2]} 25. Rxc8+
{[%clk 0:01:18.6]} 25... Bxc8 {[%clk 0:01:29.1]} 26. exd5 {[%clk 0:01:19.4]}
26... Bd7 {[%clk 0:01:26.2]} 27. b3 {[%clk 0:01:18.7]} 27... b5 {[%clk
0:01:20.5]} 28. a5 {[%clk 0:01:16.7]} 28... b4 {[%clk 0:01:10.7]} 29. h4 {[%clk
0:01:12.3]} 29... Qe7 {[%clk 0:00:56.4]} 30. Nc4 {[%clk 0:01:11.3]} 30... Qc5
{[%clk 0:00:52.8]} 31. d6 {[%clk 0:01:06.2]} 31... Bb5 {[%clk 0:00:37.1]} 32.
Bxb7 {[%clk 0:01:03.8]} 32... Bxc4 {[%clk 0:00:36.8]} 33. d7 {[%clk 0:00:53.4]}
33... Qc7 {[%clk 0:00:36.3]} 34. bxc4 {[%clk 0:00:50.1]} 34... Qxd7 {[%clk
0:00:35.9]} 35. Qxb4 {[%clk 0:00:49.4]} 35... Qf5 {[%clk 0:00:28.3]} 36. Qe1
{[%clk 0:00:37.6]} 36... Bxf2+ {[%clk 0:00:22.1]} 37. Qxf2 {[%clk 0:00:36.8]}
37... Qb1+ {[%clk 0:00:22.5]} 38. Kh2 {[%clk 0:00:26.6]} 38... Qxb7 {[%clk
0:00:22.6]} 39. Qa2 {[%clk 0:00:20.2]} 39... e4 {[%clk 0:00:20.2]} 40. a6 {[%clk
0:00:19.6]} 40... Qa8 {[%clk 0:00:20.2]} 41. a7 {[%clk 0:00:19.5]} 41... e3
{[%clk 0:00:20.2]} 42. c5 {[%clk 0:00:14.7]} 42... e2 {[%clk 0:00:19.2]} 43.
Qxe2 {[%clk 0:00:15.1]} 43... Qxa7 {[%clk 0:00:19.5]} 44. c6 {[%clk 0:00:14.7]}
44... Qc7 {[%clk 0:00:19.3]} 45. Qe8+ {[%clk 0:00:13.8]} 45... Kh7 {[%clk
0:00:19.4]} 46. Qd7 {[%clk 0:00:14.7]} 46... Qe5 {[%clk 0:00:19.4]} 47. c7
{[%clk 0:00:14.2]} 47... Qe2+ {[%clk 0:00:19.3]} 48. Kh3 {[%clk 0:00:14.8]}
48... Qf1+ {[%clk 0:00:19.2]} 49. Kg4 {[%clk 0:00:15.4]} 49... h5+ {[%clk
0:00:18]} 50. Kxh5 {[%clk 0:00:08.4]} 50... Qf3+ {[%clk 0:00:17.6]} 51. g4
{[%clk 0:00:05.8]} 51... g6+ {[%clk 0:00:16.8]} 52. Kg5 {[%clk 0:00:06.5]} 52...
Qe3+ {[%clk 0:00:16.5]} 53. Kf6 {[%clk 0:00:07.1]} 53... Qf4+ {[%clk 0:00:15.6]}
54. Ke7 {[%clk 0:00:07.2]} 54... Kg7 {[%clk 0:00:12.9]} 55. Qd6 {[%clk
0:00:03.8]} 55... Qe4+ {[%clk 0:00:11.4]} 56. Kd8 {[%clk 0:00:04]} 56... Qxg4
{[%clk 0:00:10.5]} 57. c8=Q {[%clk 0:00:04.2]} 57... Qxh4+ {[%clk 0:00:10.4]}
58. Qe7 {[%clk 0:00:04.5]} 58... Qd4+ {[%clk 0:00:09.3]} 59. Ke8 {[%clk
0:00:04.7]} 59... Qa4+ {[%clk 0:00:08.5]} 60. Kd8 {[%clk 0:00:04.3]} 60... Qd4+
{[%clk 0:00:08.2]} 61. Kc7 {[%clk 0:00:04.4]} 61... Qc4+ {[%clk 0:00:07.7]} 62.
Kb8 {[%clk 0:00:04.2]} 62... Qb5+ {[%clk 0:00:07.4]} 63. Qeb7 {[%clk 0:00:04.5]}
63... Qe5+ {[%clk 0:00:06.4]} 64. Qcc7 {[%clk 0:00:04.6]} 64... Qe8+ {[%clk
0:00:05.8]} 65. Ka7 {[%clk 0:00:05.1]} 65... Qa4+ {[%clk 0:00:05.5]} 66. Qa6
{[%clk 0:00:05.7]} 66... Qd4+ {[%clk 0:00:05.2]} 67. Kb7 {[%clk 0:00:05.8]}
67... Qd5+ {[%clk 0:00:04.9]} 68. Qcc6 {[%clk 0:00:05.2]} 68... Qb3+ {[%clk
0:00:04]} 69. Qab5 {[%clk 0:00:05.4]} 1-0

[Event "*** Titled Tuesday Blitz"]
[Site "Chess.com"]
[Date "2020.04.14"]
[Round "7"]
[White "swayamsm"]
[Black "Mikhail_Golubev"]
[Result "1/2-1/2"]
[WhiteElo "2669"]
[BlackElo "2528"]
[TimeControl "180+1"]
[EndTime "11:16:14 PDT"]
[Termination "Game drawn - insufficient material"]

1. d4 {[%clk 0:03:00.9]} 1... Nf6 {[%clk 0:02:59.1]} 2. Nf3 {[%clk 0:03:01.8]}
2... d6 {[%clk 0:02:58.2]} 3. Nc3 {[%clk 0:02:54.5]} 3... g6 {[%clk 0:02:54.4]}
4. e4 {[%clk 0:02:54.6]} 4... Bg7 {[%clk 0:02:54.6]} 5. Be2 {[%clk 0:02:51]}
5... O-O {[%clk 0:02:53.8]} 6. O-O {[%clk 0:02:51.6]} 6... Bg4 {[%clk
0:02:52.9]} 7. Re1 {[%clk 0:02:49.8]} 7... Nc6 {[%clk 0:02:45.3]} 8. d5 {[%clk
0:02:48.1]} 8... Bxf3 {[%clk 0:02:38.4]} 9. Bxf3 {[%clk 0:02:47.4]} 9... Ne5
{[%clk 0:02:33.9]} 10. Be2 {[%clk 0:02:47]} 10... c6 {[%clk 0:02:34.1]} 11. Be3
{[%clk 0:02:43.1]} 11... cxd5 {[%clk 0:02:31.4]} 12. exd5 {[%clk 0:02:44]} 12...
Rc8 {[%clk 0:02:28.8]} 13. Qd4 {[%clk 0:02:30.3]} 13... Nfg4 {[%clk 0:01:57.8]}
14. Qxa7 {[%clk 0:02:18.3]} 14... Nxe3 {[%clk 0:01:38.5]} 15. Qxe3 {[%clk
0:02:19.2]} 15... Qa5 {[%clk 0:01:25.9]} 16. a3 {[%clk 0:02:09.6]} 16... Rfe8
{[%clk 0:01:17.5]} 17. Rac1 {[%clk 0:01:58.3]} 17... Nc4 {[%clk 0:01:10.7]} 18.
Bxc4 {[%clk 0:01:58]} 18... Rxc4 {[%clk 0:01:10.5]} 19. Nd1 {[%clk 0:01:58.5]}
19... Bh6 {[%clk 0:01:00.9]} 20. Qe2 {[%clk 0:01:20.9]} 20... Bxc1 {[%clk
0:00:55.2]} 21. b4 {[%clk 0:01:21.8]} 21... Qc7 {[%clk 0:00:53.5]} 22. c3 {[%clk
0:01:17.7]} 22... Bg5 {[%clk 0:00:47]} 23. g3 {[%clk 0:01:17.5]} 23... Bf6
{[%clk 0:00:46.8]} 24. Qf3 {[%clk 0:01:15.6]} 24... Rc8 {[%clk 0:00:45.8]} 25.
Kg2 {[%clk 0:01:09.6]} 25... b5 {[%clk 0:00:42.7]} 26. h4 {[%clk 0:01:08.5]}
26... h5 {[%clk 0:00:39.7]} 27. Re2 {[%clk 0:01:07.2]} 27... Bxc3 {[%clk
0:00:38.2]} 28. Ne3 {[%clk 0:01:07.2]} 28... Rd4 {[%clk 0:00:35.9]} 29. g4
{[%clk 0:01:07.5]} 29... hxg4 {[%clk 0:00:34.7]} 30. Nxg4 {[%clk 0:01:08.4]}
30... Kg7 {[%clk 0:00:33]} 31. h5 {[%clk 0:00:48.5]} 31... Qc4 {[%clk
0:00:29.1]} 32. h6+ {[%clk 0:00:43.1]} 32... Kg8 {[%clk 0:00:24.7]} 33. Ne3
{[%clk 0:00:36.9]} 33... Qd3 {[%clk 0:00:22.5]} 34. Qh3 {[%clk 0:00:32.8]} 34...
Rf8 {[%clk 0:00:16.7]} 35. Rc2 {[%clk 0:00:29.6]} 35... Qe4+ {[%clk 0:00:15.5]}
36. Kf1 {[%clk 0:00:29.8]} 36... Qd3+ {[%clk 0:00:12.2]} 37. Kg2 {[%clk
0:00:29]} 37... Rf4 {[%clk 0:00:10.4]} 38. Kg1 {[%clk 0:00:21.5]} 38... Bf6
{[%clk 0:00:06.8]} 39. h7+ {[%clk 0:00:18.7]} 39... Kg7 {[%clk 0:00:06.5]} 40.
Rc8 {[%clk 0:00:15.4]} 40... Rxc8 {[%clk 0:00:05.2]} 41. Qxc8 {[%clk 0:00:16.3]}
41... Kxh7 {[%clk 0:00:04.2]} 42. Qf8 {[%clk 0:00:15.9]} 42... Bg7 {[%clk
0:00:03.3]} 43. Qxe7 {[%clk 0:00:15.9]} 43... Qe4 {[%clk 0:00:02.4]} 44. Qxd6
{[%clk 0:00:15.5]} 44... Rh4 {[%clk 0:00:02.4]} 45. Kf1 {[%clk 0:00:12.2]} 45...
Qb1+ {[%clk 0:00:02.1]} 46. Ke2 {[%clk 0:00:12.4]} 46... Qb2+ {[%clk 0:00:02.6]}
47. Kf3 {[%clk 0:00:12.6]} 47... Qf6+ {[%clk 0:00:01.5]} 48. Qxf6 {[%clk
0:00:12.3]} 48... Bxf6 {[%clk 0:00:02]} 49. Nc2 {[%clk 0:00:13]} 49... Rh3+
{[%clk 0:00:01.6]} 50. Ke4 {[%clk 0:00:11.6]} 50... Rc3 {[%clk 0:00:01.9]} 51.
Ne3 {[%clk 0:00:11.8]} 51... Rxa3 {[%clk 0:00:02.1]} 52. d6 {[%clk 0:00:12]}
52... Rb3 {[%clk 0:00:02]} 53. Nd5 {[%clk 0:00:12.6]} 53... Bd8 {[%clk
0:00:01.8]} 54. d7 {[%clk 0:00:13.1]} 54... Kg8 {[%clk 0:00:01.5]} 55. Ke5
{[%clk 0:00:12.6]} 55... Kf8 {[%clk 0:00:01.8]} 56. Kd6 {[%clk 0:00:13.5]} 56...
Rb1 {[%clk 0:00:02.1]} 57. Kc6 {[%clk 0:00:13.8]} 57... Rd1 {[%clk 0:00:02.6]}
58. Nc3 {[%clk 0:00:12.9]} 58... Rc1 {[%clk 0:00:02.6]} 59. Kxb5 {[%clk
0:00:11.4]} 59... Rxc3 {[%clk 0:00:03]} 60. Ka6 {[%clk 0:00:12.3]} 60... Rc1
{[%clk 0:00:02.9]} 61. b5 {[%clk 0:00:13.2]} 61... Rd1 {[%clk 0:00:03.3]} 62. b6
{[%clk 0:00:14.1]} 62... Rxd7 {[%clk 0:00:03.7]} 63. b7 {[%clk 0:00:15]} 63...
Rxb7 {[%clk 0:00:03.8]} 64. Kxb7 {[%clk 0:00:15.9]} 64... Ke7 {[%clk 0:00:04.3]}
65. Kc6 {[%clk 0:00:16.5]} 65... Kf6 {[%clk 0:00:05]} 66. Kd5 {[%clk 0:00:17.2]}
66... Kf5 {[%clk 0:00:05.4]} 67. Kd6 {[%clk 0:00:17.3]} 67... Kf4 {[%clk
0:00:05.7]} 68. Kd7 {[%clk 0:00:18.2]} 68... f5 {[%clk 0:00:06.1]} 69. Kxd8
{[%clk 0:00:18.2]} 69... g5 {[%clk 0:00:06.5]} 70. Ke7 {[%clk 0:00:19.1]} 70...
Kf3 {[%clk 0:00:06.8]} 71. Kf6 {[%clk 0:00:20]} 71... Kf4 {[%clk 0:00:05.1]} 72.
Kg6 {[%clk 0:00:19.7]} 72... Kg4 {[%clk 0:00:04.4]} 73. Kf6 {[%clk 0:00:19.9]}
73... f4 {[%clk 0:00:04.2]} 74. Kg6 {[%clk 0:00:19.9]} 74... Kh4 {[%clk
0:00:04.4]} 75. Kf5 {[%clk 0:00:20.2]} 75... Kh5 {[%clk 0:00:05]} 76. Ke4 {[%clk
0:00:11.5]} 76... Kg4 {[%clk 0:00:04.8]} 77. Ke5 {[%clk 0:00:09.1]} 77... Kh3
{[%clk 0:00:04.8]} 78. Kf5 {[%clk 0:00:10]} 78... Kg2 {[%clk 0:00:03.7]} 79.
Kxg5 {[%clk 0:00:09.9]} 79... Kxf2 {[%clk 0:00:03.9]} 80. Kxf4 {[%clk
0:00:10.7]} 1/2-1/2

[Event "*** Titled Tuesday Blitz"]
[Site "Chess.com"]
[Date "2020.04.14"]
[Round "7"]
[White "nonscitis"]
[Black "GasconJR"]
[Result "0-1"]
[WhiteElo "2646"]
[BlackElo "2457"]
[TimeControl "180+1"]
[EndTime "11:16:19 PDT"]
[Termination "GasconJR won on time"]

1. d4 {[%clk 0:03:00.9]} 1... d5 {[%clk 0:02:51.9]} 2. c4 {[%clk 0:02:59.5]}
2... dxc4 {[%clk 0:02:52.8]} 3. Nf3 {[%clk 0:02:58.2]} 3... Nf6 {[%clk
0:02:53.1]} 4. e3 {[%clk 0:02:56.7]} 4... e6 {[%clk 0:02:53.7]} 5. Bxc4 {[%clk
0:02:54]} 5... a6 {[%clk 0:02:54.3]} 6. O-O {[%clk 0:02:49.8]} 6... b5 {[%clk
0:02:54.6]} 7. Be2 {[%clk 0:02:48.6]} 7... Bb7 {[%clk 0:02:55.1]} 8. a4 {[%clk
0:02:48.1]} 8... b4 {[%clk 0:02:55.6]} 9. Nbd2 {[%clk 0:02:46.5]} 9... Nbd7
{[%clk 0:02:55]} 10. Nc4 {[%clk 0:02:41.8]} 10... c5 {[%clk 0:02:54.2]} 11. b3
{[%clk 0:02:39.6]} 11... Be7 {[%clk 0:02:45.6]} 12. Bb2 {[%clk 0:02:35.3]} 12...
O-O {[%clk 0:02:45.7]} 13. Rc1 {[%clk 0:02:34.6]} 13... Bd5 {[%clk 0:02:44.9]}
14. Bd3 {[%clk 0:02:32]} 14... a5 {[%clk 0:02:40.1]} 15. Nfd2 {[%clk 0:02:30.4]}
15... cxd4 {[%clk 0:02:39.1]} 16. Bxd4 {[%clk 0:02:28]} 16... Nc5 {[%clk
0:02:36.8]} 17. Bb1 {[%clk 0:02:26.3]} 17... Nfd7 {[%clk 0:02:24.7]} 18. Qh5
{[%clk 0:02:11.5]} 18... g6 {[%clk 0:02:21.2]} 19. Qh6 {[%clk 0:02:10]} 19...
Bf6 {[%clk 0:02:21.1]} 20. Nf3 {[%clk 0:01:36.5]} 20... Bxf3 {[%clk 0:02:18.1]}
21. gxf3 {[%clk 0:01:22.2]} 21... Nxb3 {[%clk 0:02:12.7]} 22. Bxf6 {[%clk
0:01:21.5]} 22... Qxf6 {[%clk 0:02:12.3]} 23. Rcd1 {[%clk 0:01:19.8]} 23... Nbc5
{[%clk 0:01:54.7]} 24. f4 {[%clk 0:01:11.1]} 24... Rfd8 {[%clk 0:01:48.7]} 25.
Nd6 {[%clk 0:00:51.8]} 25... Nf8 {[%clk 0:01:37.5]} 26. Ne4 {[%clk 0:00:36.5]}
26... Nxe4 {[%clk 0:01:35.7]} 27. Bxe4 {[%clk 0:00:37.4]} 27... Rxd1 {[%clk
0:01:34.8]} 28. Rxd1 {[%clk 0:00:36]} 28... Rd8 {[%clk 0:01:34.6]} 29. Rc1
{[%clk 0:00:28.3]} 29... b3 {[%clk 0:01:28.9]} 30. Rb1 {[%clk 0:00:23.8]} 30...
b2 {[%clk 0:01:28.5]} 31. Qg5 {[%clk 0:00:23.1]} 31... Qxg5+ {[%clk 0:01:18.2]}
32. fxg5 {[%clk 0:00:24]} 32... Rb8 {[%clk 0:01:17.6]} 33. Bc6 {[%clk
0:00:22.7]} 33... Rb4 {[%clk 0:01:13.6]} 34. Kf1 {[%clk 0:00:19.6]} 34... e5
{[%clk 0:01:13.2]} 35. Ke2 {[%clk 0:00:16]} 35... Ne6 {[%clk 0:01:13.1]} 36. h4
{[%clk 0:00:15.2]} 36... Nc5 {[%clk 0:01:08.7]} 37. Kd2 {[%clk 0:00:13.4]} 37...
e4 {[%clk 0:00:55.6]} 38. Kc3 {[%clk 0:00:12.2]} 38... Nd3 {[%clk 0:00:23.8]}
39. Bxe4 {[%clk 0:00:09.6]} 39... Rxe4 {[%clk 0:00:22]} 40. Kxd3 {[%clk
0:00:09.6]} 40... Rxh4 {[%clk 0:00:18.8]} 41. Rxb2 {[%clk 0:00:05.2]} 41... Rxa4
{[%clk 0:00:18.4]} 42. Rb8+ {[%clk 0:00:06.1]} 42... Kg7 {[%clk 0:00:18.5]} 43.
Ra8 {[%clk 0:00:06.5]} 43... Ra2 {[%clk 0:00:18.1]} 44. f4 {[%clk 0:00:06.1]}
44... h6 {[%clk 0:00:18.4]} 45. gxh6+ {[%clk 0:00:05.4]} 45... Kxh6 {[%clk
0:00:18.5]} 46. Ra7 {[%clk 0:00:06.3]} 46... Kg7 {[%clk 0:00:18.4]} 47. e4
{[%clk 0:00:06.4]} 47... Kf6 {[%clk 0:00:15.9]} 48. e5+ {[%clk 0:00:05.4]} 48...
Ke6 {[%clk 0:00:15.3]} 49. Ke4 {[%clk 0:00:05.1]} 49... Ra4+ {[%clk 0:00:14.8]}
50. Kf3 {[%clk 0:00:05.2]} 50... Ra1 {[%clk 0:00:12.6]} 51. Ra6+ {[%clk
0:00:05.3]} 51... Ke7 {[%clk 0:00:12.7]} 52. Ra7+ {[%clk 0:00:05.4]} 52... Kf8
{[%clk 0:00:12.8]} 53. e6 {[%clk 0:00:04.7]} 53... fxe6 {[%clk 0:00:12.1]} 54.
Kg4 {[%clk 0:00:05]} 54... a4 {[%clk 0:00:11.7]} 55. Kg5 {[%clk 0:00:05]} 55...
a3 {[%clk 0:00:08.6]} 56. Kxg6 {[%clk 0:00:04.8]} 56... a2 {[%clk 0:00:08.9]}
57. Kf6 {[%clk 0:00:04.8]} 57... Ke8 {[%clk 0:00:09.4]} 58. Ra6 {[%clk
0:00:04.2]} 58... Kd7 {[%clk 0:00:07.7]} 59. Ra7+ {[%clk 0:00:04.2]} 59... Kd6
{[%clk 0:00:07.3]} 60. Ra3 {[%clk 0:00:04.4]} 60... Kd5 {[%clk 0:00:06.8]} 61.
Ra4 {[%clk 0:00:05.3]} 61... Kc5 {[%clk 0:00:05.1]} 62. Ra8 {[%clk 0:00:05]}
62... Kd4 {[%clk 0:00:04.9]} 63. Ra4+ {[%clk 0:00:04.6]} 63... Kd5 {[%clk
0:00:02.8]} 64. Ra5+ {[%clk 0:00:04.2]} 64... Kd6 {[%clk 0:00:03.3]} 65. Ra4
{[%clk 0:00:04.8]} 65... Kd7 {[%clk 0:00:03.2]} 66. Ra6 {[%clk 0:00:05.2]} 66...
Kc7 {[%clk 0:00:02.7]} 67. Ra7+ {[%clk 0:00:05.9]} 67... Kb6 {[%clk 0:00:02.9]}
68. Ra3 {[%clk 0:00:06.8]} 68... Kb5 {[%clk 0:00:03.8]} 69. Ra8 {[%clk
0:00:06.7]} 69... Kb4 {[%clk 0:00:04.1]} 70. Rb8+ {[%clk 0:00:06.7]} 70... Kc3
{[%clk 0:00:04.2]} 71. Rc8+ {[%clk 0:00:05.6]} 71... Kd4 {[%clk 0:00:05.1]} 72.
Ra8 {[%clk 0:00:05]} 72... e5 {[%clk 0:00:05.2]} 73. Ra4+ {[%clk 0:00:04.5]}
73... Kc5 {[%clk 0:00:05.1]} 74. fxe5 {[%clk 0:00:03.2]} 74... Rf1+ {[%clk
0:00:04.8]} 75. Kg7 {[%clk 0:00:02.7]} 75... a1=Q {[%clk 0:00:05.7]} 76. Rxa1
{[%clk 0:00:02.1]} 76... Rxa1 {[%clk 0:00:06.6]} 77. e6 {[%clk 0:00:03]} 77...
Kd6 {[%clk 0:00:07]} 78. e7 {[%clk 0:00:03.9]} 78... Kxe7 {[%clk 0:00:06.8]} 0-1

[Event "*** Titled Tuesday Blitz"]
[Site "Chess.com"]
[Date "2020.04.14"]
[Round "7"]
[White "Noukii"]
[Black "guillembaches"]
[Result "0-1"]
[WhiteElo "2675"]
[BlackElo "2474"]
[TimeControl "180+1"]
[EndTime "11:16:23 PDT"]
[Termination "guillembaches won by checkmate"]

1. e4 {[%clk 0:03:00.9]} 1... c5 {[%clk 0:02:59.2]} 2. Nf3 {[%clk 0:03:00.5]}
2... d6 {[%clk 0:02:59.7]} 3. d4 {[%clk 0:03:00]} 3... cxd4 {[%clk 0:03:00.6]}
4. Nxd4 {[%clk 0:02:58.1]} 4... Nf6 {[%clk 0:03:01]} 5. Nc3 {[%clk 0:02:58.6]}
5... a6 {[%clk 0:03:01.5]} 6. Be3 {[%clk 0:02:58.8]} 6... e5 {[%clk 0:03:01]} 7.
Nb3 {[%clk 0:02:58.6]} 7... Be6 {[%clk 0:03:01]} 8. Qd2 {[%clk 0:02:54]} 8...
Nbd7 {[%clk 0:02:59]} 9. f3 {[%clk 0:02:53.6]} 9... h5 {[%clk 0:02:58.4]} 10.
Nd5 {[%clk 0:02:45.5]} 10... Bxd5 {[%clk 0:02:57.7]} 11. exd5 {[%clk 0:02:46.4]}
11... g6 {[%clk 0:02:57.7]} 12. c4 {[%clk 0:02:30.2]} 12... b6 {[%clk
0:02:52.4]} 13. Be2 {[%clk 0:02:26.6]} 13... Bg7 {[%clk 0:02:52]} 14. O-O {[%clk
0:02:20.7]} 14... O-O {[%clk 0:02:51.8]} 15. a4 {[%clk 0:02:20.6]} 15... a5
{[%clk 0:02:45.2]} 16. Rae1 {[%clk 0:02:12]} 16... Re8 {[%clk 0:02:44.7]} 17.
Nc1 {[%clk 0:02:01.1]} 17... Rc8 {[%clk 0:02:36.5]} 18. Na2 {[%clk 0:01:59.8]}
18... Nc5 {[%clk 0:02:21.8]} 19. Bd1 {[%clk 0:01:56.2]} 19... e4 {[%clk
0:02:13.1]} 20. Bc2 {[%clk 0:01:48.1]} 20... exf3 {[%clk 0:02:00.6]} 21. gxf3
{[%clk 0:01:44.1]} 21... Nfd7 {[%clk 0:01:47.7]} 22. Nc3 {[%clk 0:01:41.2]}
22... Ne5 {[%clk 0:01:43.8]} 23. b3 {[%clk 0:01:30.2]} 23... Bf6 {[%clk
0:01:29.3]} 24. Nb5 {[%clk 0:01:20.3]} 24... Bh4 {[%clk 0:01:14.8]} 25. Re2
{[%clk 0:01:19]} 25... Qf6 {[%clk 0:01:13.3]} 26. Kg2 {[%clk 0:01:10.5]} 26...
Re7 {[%clk 0:01:01.9]} 27. f4 {[%clk 0:01:00.6]} 27... Ng4 {[%clk 0:00:53.6]}
28. Bd4 {[%clk 0:01:00.2]} 28... Rxe2+ {[%clk 0:00:52.1]} 29. Qxe2 {[%clk
0:01:01.1]} 29... Qd8 {[%clk 0:00:50.8]} 30. h3 {[%clk 0:00:33.5]} 30... Nf6
{[%clk 0:00:39.8]} 31. f5 {[%clk 0:00:20.9]} 31... g5 {[%clk 0:00:34.8]} 32. Bf2
{[%clk 0:00:20.2]} 32... Bxf2 {[%clk 0:00:31.3]} 33. Qxf2 {[%clk 0:00:21.1]}
33... Qf8 {[%clk 0:00:20.6]} 34. Qg3 {[%clk 0:00:20.4]} 34... g4 {[%clk
0:00:18.2]} 35. hxg4 {[%clk 0:00:19.9]} 35... hxg4 {[%clk 0:00:19.1]} 36. Qxd6
{[%clk 0:00:19.7]} 36... Qh6 {[%clk 0:00:18.8]} 37. Qg3 {[%clk 0:00:11.6]} 37...
Re8 {[%clk 0:00:16.8]} 38. Rf2 {[%clk 0:00:09.1]} 38... Re3 {[%clk 0:00:16.7]}
39. Qb8+ {[%clk 0:00:05.8]} 39... Kg7 {[%clk 0:00:16.2]} 40. Qh2 {[%clk
0:00:06.1]} 40... Qxh2+ {[%clk 0:00:12.9]} 41. Kxh2 {[%clk 0:00:06.5]} 41... g3+
{[%clk 0:00:13.5]} 42. Kg2 {[%clk 0:00:07.4]} 42... gxf2 {[%clk 0:00:13.7]} 43.
Kxf2 {[%clk 0:00:08.3]} 43... Rh3 {[%clk 0:00:13.8]} 44. Ke2 {[%clk 0:00:07.4]}
44... Nfe4 {[%clk 0:00:13.1]} 45. Nd4 {[%clk 0:00:06.5]} 45... Nc3+ {[%clk
0:00:09.5]} 46. Kd2 {[%clk 0:00:06.4]} 46... N3e4+ {[%clk 0:00:09.7]} 47. Ke2
{[%clk 0:00:06.6]} 47... Kf6 {[%clk 0:00:09.6]} 48. Nf3 {[%clk 0:00:05.4]} 48...
Rxf3 {[%clk 0:00:08.1]} 49. Kxf3 {[%clk 0:00:05.5]} 49... Nd2+ {[%clk
0:00:08.3]} 50. Ke3 {[%clk 0:00:05.5]} 50... Ndxb3 {[%clk 0:00:08.4]} 51. Kf4
{[%clk 0:00:05.1]} 51... Nd4 {[%clk 0:00:07.5]} 52. Bd1 {[%clk 0:00:05]} 52...
Nxf5 {[%clk 0:00:07.2]} 53. Kf3 {[%clk 0:00:04.5]} 53... Nd6 {[%clk 0:00:07.2]}
54. Ke3 {[%clk 0:00:05.4]} 54... Nxc4+ {[%clk 0:00:06.4]} 55. Kd4 {[%clk
0:00:06.3]} 55... Nd6 {[%clk 0:00:06.7]} 56. Be2 {[%clk 0:00:07.2]} 56... Ke7
{[%clk 0:00:06.7]} 57. Bd1 {[%clk 0:00:07]} 57... f5 {[%clk 0:00:07]} 58. Ke5
{[%clk 0:00:07.9]} 58... Nf7+ {[%clk 0:00:06.6]} 59. Kxf5 {[%clk 0:00:08.2]}
59... Kd6 {[%clk 0:00:07.1]} 60. Bf3 {[%clk 0:00:07.8]} 60... Nd8 {[%clk
0:00:07.5]} 61. Kf4 {[%clk 0:00:08.1]} 61... Nxa4 {[%clk 0:00:07.8]} 62. Ke3
{[%clk 0:00:09]} 62... Nc5 {[%clk 0:00:08.2]} 63. Kd4 {[%clk 0:00:09.9]} 63...
Ndb7 {[%clk 0:00:08.5]} 64. Kc4 {[%clk 0:00:10.3]} 64... Nd7 {[%clk 0:00:08.4]}
65. Kb5 {[%clk 0:00:10.8]} 65... Nbc5 {[%clk 0:00:08.7]} 66. Bg4 {[%clk
0:00:11.1]} 66... a4 {[%clk 0:00:08.9]} 67. Kb4 {[%clk 0:00:09.9]} 67... Kxd5
{[%clk 0:00:09.1]} 68. Bf3+ {[%clk 0:00:08.9]} 68... Kd6 {[%clk 0:00:08.8]} 69.
Bg4 {[%clk 0:00:08.9]} 69... Kc7 {[%clk 0:00:09]} 70. Be2 {[%clk 0:00:09.1]}
70... Nb8 {[%clk 0:00:08.9]} 71. Bb5 {[%clk 0:00:08.7]} 71... Nc6+ {[%clk
0:00:08.9]} 72. Ka3 {[%clk 0:00:09.1]} 72... Nd4 {[%clk 0:00:08.7]} 73. Bf1
{[%clk 0:00:09.3]} 73... b5 {[%clk 0:00:08.9]} 74. Kb4 {[%clk 0:00:09.5]} 74...
Kb6 {[%clk 0:00:09.2]} 75. Kc3 {[%clk 0:00:10]} 75... Nc6 {[%clk 0:00:09.3]} 76.
Kb2 {[%clk 0:00:10.3]} 76... b4 {[%clk 0:00:09.4]} 77. Bc4 {[%clk 0:00:11.2]}
77... Ne5 {[%clk 0:00:09.3]} 78. Bd5 {[%clk 0:00:10.3]} 78... Ned3+ {[%clk
0:00:09.3]} 79. Kc2 {[%clk 0:00:10.4]} 79... Nf4 {[%clk 0:00:09.1]} 80. Bc4
{[%clk 0:00:10.1]} 80... Nfe6 {[%clk 0:00:09.1]} 81. Kb2 {[%clk 0:00:09.7]}
81... Nd4 {[%clk 0:00:09.2]} 82. Ka2 {[%clk 0:00:09.4]} 82... a3 {[%clk
0:00:09.1]} 83. Bf7 {[%clk 0:00:08.7]} 83... Na4 {[%clk 0:00:09]} 84. Bg8 {[%clk
0:00:05.6]} 84... Nc3+ {[%clk 0:00:09.1]} 85. Ka1 {[%clk 0:00:06.5]} 85... Nc2#
{[%clk 0:00:07.8]} 0-1